bitfinex/quotes_SOLUSD_20250118
["timestamp","ask_amount","ask_price","bid_price","bid_amount"]
[1737195042885,0.403608,239.95,239.93,19.98792488]
[1737195043578,0.403608,239.95,239.91,19.98792488]
[1737195043975,0.403608,239.95,239.87,19.98792488]
[1737195044287,0.403608,239.95,239.88,0.1]
[1737195044780,0.403608,239.95,239.9,20.0]
[1737195045284,0.403608,239.95,239.87,19.98792488]
[1737195045285,20.39153288,239.95,239.82,0.063]
[1737195045489,20.39153288,239.95,239.84,19.98792488]
[1737195045490,19.98792488,239.93,239.84,19.98792488]
[1737195045795,19.98792488,239.93,239.87,20.0]
[1737195045961,19.98792488,239.93,239.84,19.98792488]
[1737195046166,19.98792488,239.91,239.83,0.1]
[1737195046566,19.98792488,239.91,239.85,20.0]
[1737195046767,19.98792488,239.91,239.82,20.05092488]
[1737195047287,19.98792488,239.93,239.85,20.0]
[1737195047491,0.403608,239.95,239.9,19.98792488]
[1737195047878,0.403608,239.95,239.88,19.98792488]
[1737195048592,0.403608,239.95,239.9,19.98792488]
[1737195048773,0.403608,239.95,239.82,0.6881888]
[1737195048774,0.403608,239.95,239.94,39.98792488]
[1737195049292,0.403608,239.95,239.94,20.0]
[1737195050096,0.403608,239.95,239.92,19.98792488]
[1737195050268,0.403608,239.95,239.93,20.0]
[1737195050689,0.403608,239.95,239.94,19.98792488]
[1737195050887,0.03,239.96,239.94,19.98792488]
[1737195052774,0.03,239.96,239.92,21.61202239]
[1737195052983,0.03,239.96,239.9,0.063]
[1737195053188,0.03,239.96,239.91,19.98792488]
[1737195053394,0.03,239.96,239.93,19.98792488]
[1737195055281,0.03,239.96,239.95,19.98792488]
[1737195055990,0.03,239.96,239.95,20.0]
[1737195056191,0.03,239.96,239.84,0.62510175]
[1737195056379,0.03,239.96,239.94,19.98792488]
[1737195056581,0.03,239.96,239.91,20.0]
[1737195056880,0.03,239.96,239.93,19.98792488]
[1737195057985,0.03,239.96,239.95,19.98792488]
[1737195059186,0.03,239.96,239.88,1.62486218]
[1737195059492,0.03,239.96,239.89,19.98792488]
[1737195060292,0.03,239.96,239.92,19.98792488]
[1737195061191,0.03,239.96,239.94,19.98792488]
[1737195061388,0.03,239.96,239.84,0.62512706]
[1737195061698,0.03,239.96,239.92,19.98792488]
[1737195062202,0.03,239.96,239.9,19.98792488]
[1737195062492,0.03,239.96,239.88,19.98792488]
[1737195062698,19.98792488,239.94,239.88,0.063]
[1737195062882,0.62496107,239.93,239.88,0.063]
[1737195064600,19.98792488,239.92,239.88,0.063]
[1737195064784,0.62496107,239.91,239.88,0.063]
[1737195064984,19.98792488,239.92,239.88,0.063]
[1737195065179,0.62496107,239.91,239.88,0.063]
[1737195065386,19.98792488,239.9,239.88,0.063]
[1737195066393,20.61288595,239.9,239.88,0.063]
[1737195067632,22.92998595,239.9,239.88,0.063]
[1737195068507,23.776884,239.89,239.88,0.063]
[1737195068889,23.776884,239.87,239.82,0.063]
[1737195069093,43.76480888,239.83,239.82,0.063]
[1737195069508,14.84167772,239.79,239.78,0.063]
[1737195069717,37.74691651,239.79,239.78,0.063]
[1737195070187,25.22233879,239.79,239.78,0.063]
[1737195070604,48.99922279,239.79,239.78,0.063]
[1737195071210,25.22233879,239.79,239.78,0.063]
[1737195071516,56.51432767,239.79,239.78,0.063]
[1737195072197,23.776884,239.78,239.65,0.063]
[1737195072397,20.0396826,239.66,239.65,0.063]
[1737195072794,23.776884,239.74,239.65,0.063]
[1737195072999,20.0396826,239.66,239.65,0.063]
[1737195073200,52.9045666,239.66,239.65,0.063]
[1737195073411,75.2793492,239.66,239.65,0.063]
[1737195073897,23.776884,239.65,239.62,0.063]
[1737195074105,20.0396826,239.63,239.62,0.063]
[1737195074415,43.8165666,239.63,239.62,0.063]
[1737195074788,20.66464367,239.64,239.62,0.063]
[1737195074789,20.0396826,239.64,239.62,0.063]
[1737195075784,0.62496107,239.63,239.62,0.063]
[1737195077184,20.0396826,239.64,239.62,0.063]
[1737195077708,0.62496107,239.63,239.62,0.063]
[1737195078088,20.0396826,239.64,239.62,0.063]
[1737195079394,20.0396826,239.66,239.62,0.063]
[1737195080514,0.62496107,239.7,239.62,0.063]
[1737195080515,20.0396826,239.7,239.65,20.0]
[1737195081525,20.0396826,239.74,239.67,20.0]
[1737195081697,20.0396826,239.77,239.69,40.0396826]
[1737195082393,9.1192,239.83,239.73,20.0396826]
[1737195082394,20.0396826,239.81,239.73,20.0396826]
[1737195083304,20.0396826,239.83,239.75,20.0396826]
[1737195083511,20.0396826,239.87,239.79,20.0396826]
[1737195083919,20.0396826,239.89,239.81,20.0396826]
[1737195084121,9.1492,239.96,239.85,20.0396826]
[1737195084298,20.0396826,239.93,239.85,20.0396826]
[1737195084622,0.03,239.96,239.9,20.0]
[1737195085616,20.0396826,239.95,239.87,20.0396826]
[1737195085915,0.03,239.96,239.89,20.0396826]
[1737195087525,0.03,239.96,239.85,20.0]
[1737195087814,0.03,239.96,239.91,20.0]
[1737195088214,20.0396826,239.95,239.91,20.0]
[1737195088600,0.03,239.96,239.91,20.0]
[1737195088806,0.03,239.96,239.88,20.0396826]
[1737195089009,0.03,239.96,239.91,20.0]
[1737195090813,0.03,239.96,239.9,20.0396826]
[1737195091213,0.03,239.96,239.92,20.0396826]
[1737195091414,0.03,239.96,239.88,20.0396826]
[1737195091613,0.03,239.96,239.91,20.0]
[1737195091816,20.0396826,239.92,239.82,25.86297823]
[1737195092022,20.0396826,239.87,239.79,20.0396826]
[1737195092518,20.0396826,239.87,239.82,20.0]
[1737195092911,20.0396826,239.87,239.79,20.0396826]
[1737195093110,20.0396826,239.89,239.81,20.0396826]
[1737195093319,20.0396826,239.93,239.85,20.0396826]
[1737195093520,20.0396826,239.95,239.9,20.0]
[1737195093735,0.03,239.96,239.89,20.0396826]
[1737195094106,20.0696826,239.96,239.89,20.0396826]
[1737195094305,20.0396826,239.92,239.85,20.0396826]
[1737195094528,20.0396826,239.94,239.85,20.0396826]
[1737195094724,20.0396826,239.94,239.88,20.0]
[1737195094926,20.0396826,239.92,239.88,20.0]
[1737195095604,20.0396826,239.92,239.86,20.0]
[1737195096931,20.0396826,239.92,239.85,20.0396826]
[1737195098723,0.65496107,239.96,239.68,9.4304]
[1737195098724,20.0396826,239.86,239.68,9.4304]
[1737195098924,20.0396826,239.8,239.71,20.0396826]
[1737195099310,20.0396826,239.8,239.73,20.0396826]
[1737195099811,9.6913,239.89,239.8,20.0]
[1737195099812,20.0396826,239.86,239.8,20.0]
[1737195100325,20.0396826,239.84,239.8,20.0]
[1737195100720,20.0396826,239.82,239.71,1.66446916]
[1737195100913,20.0396826,239.8,239.71,20.0396826]
[1737195101122,20.0396826,239.78,239.71,20.0396826]
[1737195101412,20.0396826,239.78,239.7,20.0396826]
[1737195101736,0.62496107,239.87,239.74,20.0396826]
[1737195101941,20.0396826,239.83,239.76,20.0396826]
[1737195102236,20.0396826,239.83,239.74,20.0396826]
[1737195103125,20.0396826,239.81,239.76,20.0]
[1737195104829,20.0396826,239.81,239.72,20.0396826]
[1737195105015,20.0396826,239.79,239.7,20.0396826]
[1737195105215,20.0396826,239.81,239.75,20.0]
[1737195105821,20.0396826,239.83,239.77,20.0]
[1737195106327,20.0396826,239.79,239.7,20.0396826]
[1737195106529,20.0396826,239.79,239.73,20.0]
[1737195107314,20.0396826,239.85,239.81,20.0]
[1737195107517,20.0396826,239.87,239.81,20.0]
[1737195108427,20.0396826,239.89,239.83,20.0]
[1737195108818,20.0396826,239.87,239.83,20.0]
[1737195109013,20.0396826,239.85,239.78,24.4]
[1737195109216,20.0396826,239.83,239.78,4.4]
[1737195109719,20.0396826,239.83,239.78,24.4]
[1737195110020,20.0396826,239.83,239.78,20.0]
[1737195110214,20.0396826,239.81,239.78,20.0]
[1737195110634,20.0396826,239.83,239.78,20.0]
[1737195111534,0.62496107,239.93,239.78,20.0]
[1737195111535,12.51655236,239.82,239.78,20.0]
[1737195113035,12.51655236,239.82,239.74,12.51655236]
[1737195113541,12.51655236,239.82,239.78,20.0]
[1737195113834,12.51655236,239.84,239.79,20.0]
[1737195114216,8.8181,239.95,239.85,20.0]
[1737195114434,0.03,239.96,239.89,20.0]
[1737195114632,12.51655236,239.95,239.89,20.0]
[1737195115030,12.51655236,239.95,239.91,20.0]
[1737195116642,12.51655236,239.93,239.85,16.91655236]
[1737195116821,12.51655236,239.91,239.85,4.4]
[1737195117148,12.51655236,239.95,239.92,20.0]
[1737195117348,0.03,239.96,239.92,20.0]
[1737195117934,0.03,239.96,239.95,20.0]
[1737195118433,0.03,239.99,239.95,56.29343636]
[1737195118639,0.03,239.99,239.98,12.51655236]
[1737195119728,0.03,239.99,239.92,12.51655236]
[1737195119929,0.03,239.99,239.94,12.51655236]
[1737195120135,0.03,239.99,239.96,12.51655236]
[1737195120332,0.03,239.99,239.94,12.51655236]
[1737195120640,0.03,239.99,239.73,95.416552]
[1737195120641,12.51655236,239.97,239.87,12.51655236]
[1737195120939,0.03,239.99,239.95,12.51655236]
[1737195122361,0.03,239.99,239.93,12.51655236]
[1737195122949,12.54655236,239.99,239.94,20.0]
[1737195123824,0.03,239.99,239.96,20.0]
[1737195124549,0.03,239.99,239.97,12.51655236]
[1737195125629,0.03,239.99,239.98,23.776884]
[1737195126035,0.03,239.99,239.98,36.29343636]
[1737195126237,0.03,239.99,239.98,23.776884]
[1737195126550,0.03,239.99,239.97,12.51655236]
[1737195129163,0.03,239.99,239.98,23.776884]
[1737195129759,0.03,239.99,239.97,12.51655236]
[1737195133236,0.03,239.99,239.95,12.51655236]
[1737195133554,12.54655236,239.99,239.91,12.51655236]
[1737195133751,13.17151343,239.99,239.96,0.063]
[1737195134337,0.03,239.99,239.96,0.063]
[1737195135164,0.03,239.99,239.97,12.51655236]
[1737195136136,0.03,239.99,239.96,20.063]
[1737195136336,0.03,239.99,239.98,12.51655236]
[1737195137763,0.03,239.99,239.96,0.063]
[1737195137969,12.54655236,239.99,239.96,0.063]
[1737195138135,13.17151343,239.99,239.96,0.063]
[1737195138339,12.51655236,239.97,239.96,0.063]
[1737195139062,23.95285236,239.97,239.96,0.063]
[1737195139264,24.57781343,239.97,239.93,0.1]
[1737195139570,12.06126107,239.97,239.93,0.1]
[1737195139744,12.06126107,239.97,239.87,12.51655236]
[1737195139745,12.51655236,239.95,239.87,12.51655236]
[1737195140153,12.51655236,239.94,239.87,12.51655236]
[1737195140357,12.51655236,239.96,239.87,12.51655236]
[1737195141062,22.5009771,240.17,239.97,164.6795]
[1737195141239,20.01148073,240.36,240.21,20.0]
[1737195141439,32.26748361,240.46,240.36,2.3795]
[1737195141647,63.67978589,240.49,240.48,20.0]
[1737195141840,38.92752287,240.55,240.48,20.0]
[1737195142053,54.36441437,240.53,240.49,16.57772513]
[1737195142255,101.88765743,240.63,240.53,20.0]
[1737195142441,28.82779213,240.65,240.5,20.02475653]
[1737195142442,28.82779213,240.65,240.56,25.03310472]
[1737195142647,14.41310066,240.65,240.56,0.1]
[1737195142846,14.41310066,240.65,240.64,12.51655236]
[1737195143164,1.65518287,240.99,240.67,20.0]
[1737195143369,19.86919274,240.78,240.69,19.86919274]
[1737195143566,19.86919274,240.73,240.69,0.1]
[1737195143949,19.86919274,240.71,240.69,0.1]
[1737195144873,19.86919274,240.71,240.7,19.49246747]
[1737195145068,19.86919274,240.71,240.7,19.59246747]
[1737195145273,19.86919274,240.71,240.7,17.08896747]
[1737195145457,43.64607674,240.71,240.7,17.08896747]
[1737195145954,19.86919274,240.71,240.66,1.03838581]
[1737195146160,19.86919274,240.67,240.66,1.03838581]
[1737195146664,19.86919274,240.67,240.54,44.91020878]
[1737195146665,23.776884,240.66,240.61,6.26025401]
[1737195146860,23.776884,240.62,240.61,6.26025401]
[1737195147360,23.776884,240.62,240.52,25.04101604]
[1737195147667,19.86919274,240.56,240.52,25.04101604]
[1737195147853,19.86919274,240.58,240.52,25.04101604]
[1737195148565,19.86919274,240.62,240.54,19.86919274]
[1737195148955,19.86919274,240.6,240.52,19.86919274]
[1737195149763,19.86919274,240.6,240.5,19.86919274]
[1737195149966,19.86919274,240.6,240.53,1.03880063]
[1737195150179,19.86919274,240.54,240.53,1.03880063]
[1737195150349,19.86919274,240.6,240.53,1.03880063]
[1737195150350,19.86919274,240.56,240.53,1.03880063]
[1737195150767,19.86919274,240.56,240.47,6.47697697]
[1737195151148,19.86919274,240.54,240.47,6.47697697]
[1737195151469,8.37324198,240.55,240.47,6.47697697]
[1737195151643,8.37324198,240.55,240.42,0.62365234]
[1737195151843,4.1543,240.71,240.44,19.86919274]
[1737195151844,2.79108066,240.53,240.44,19.86919274]
[1737195152070,19.86919274,240.5,240.42,19.86919274]
[1737195153251,19.86919274,240.5,240.41,19.86919274]
[1737195153562,19.86919274,240.5,240.37,25.16523061]
[1737195153757,19.86919274,240.48,240.39,19.86919274]
[1737195154066,19.86919274,240.46,240.39,19.86919274]
[1737195154767,19.86919274,240.46,240.37,19.86919274]
[1737195155154,19.86919274,240.44,240.36,2.3795]
[1737195155464,19.86919274,240.44,240.37,19.86919274]
[1737195156063,19.86919274,240.44,240.35,19.86919274]
[1737195156253,19.86919274,240.42,240.35,19.86919274]
[1737195158970,9.3871,240.54,240.27,1.66301902]
[1737195158971,23.776884,240.36,240.27,1.66301902]
[1737195159269,19.86919274,240.28,240.27,1.66301902]
[1737195159573,43.64607674,240.28,240.27,1.66301902]
[1737195159753,23.776884,240.27,240.14,2.357]
[1737195159958,19.86919274,240.25,240.17,19.86919274]
[1737195160153,19.86919274,240.27,240.19,19.86919274]
[1737195160352,19.86919274,240.31,240.21,19.86919274]
[1737195160558,19.86919274,240.31,240.23,19.86919274]
[1737195160860,19.86919274,240.33,240.26,20.0]
[1737195161058,19.86919274,240.33,240.25,19.86919274]
[1737195161059,19.86919274,240.35,240.3,20.0]
[1737195161376,19.86919274,240.37,240.3,20.0]
[1737195161867,19.86919274,240.35,240.3,20.0]
[1737195162678,19.86919274,240.37,240.3,20.0]
[1737195162871,19.86919274,240.37,240.29,19.86919274]
[1737195164170,19.86919274,240.35,240.25,4.58]
[1737195164374,19.86919274,240.33,240.25,4.58]
[1737195164985,19.86919274,240.33,240.27,20.0]
[1737195165280,19.86919274,240.33,240.24,19.86919274]
[1737195165457,19.86919274,240.35,240.27,20.0]
[1737195165653,23.776884,240.43,240.27,20.0]
[1737195165858,19.86919274,240.38,240.28,19.86919274]
[1737195166061,19.86919274,240.38,240.3,19.86919274]
[1737195166260,19.86919274,240.38,240.25,1.03971798]
[1737195166261,19.86919274,240.36,240.28,19.86919274]
[1737195166566,19.86919274,240.38,240.31,20.0]
[1737195166771,19.86919274,240.4,240.33,20.0]
[1737195167174,19.86919274,240.42,240.34,19.86919274]
[1737195167572,19.86919274,240.44,240.34,19.86919274]
[1737195168066,19.86919274,240.44,240.36,19.86919274]
[1737195168758,10.0,240.55,240.42,19.86919274]
[1737195168960,10.0,240.55,240.5,19.86919274]
[1737195169777,10.0,240.55,240.54,39.86919274]
[1737195171467,10.0,240.55,240.51,7.54875802]
[1737195171468,7.5947,240.55,240.51,7.54875802]
[1737195171675,7.5947,240.55,240.54,32.31284758]
[1737195171869,3.6544,240.55,240.54,32.93611822]
[1737195172077,32.31284758,240.71,240.54,32.93611822]
[1737195172281,32.31284758,240.69,240.62,32.31284758]
[1737195172781,7.8225,240.82,240.66,32.31284758]
[1737195173007,32.31284758,240.74,240.66,32.31284758]
[1737195173375,32.31284758,240.7,240.61,32.31284758]
[1737195173701,32.31284758,240.74,240.67,32.31284758]
[1737195173991,32.31284758,240.76,240.67,32.31284758]
[1737195175772,32.31284758,240.76,240.69,32.31284758]
[1737195177099,0.03,240.79,240.71,32.31284758]
[1737195177409,0.03,240.79,240.69,32.31284758]
[1737195177410,32.31284758,240.78,240.69,32.31284758]
[1737195177705,0.03,240.79,240.76,32.31284758]
[1737195178797,0.03,240.79,240.78,32.31284758]
[1737195180988,0.03,240.79,240.76,32.31284758]
[1737195181222,0.03,240.79,240.74,32.31284758]
[1737195181498,0.03,240.79,240.61,2.28064671]
[1737195181682,32.31284758,240.78,240.7,32.31284758]
[1737195181880,0.03,240.79,240.68,32.31284758]
[1737195182084,32.34284758,240.79,240.7,32.31284758]
[1737195182508,32.31284758,240.77,240.7,32.31284758]
[1737195182685,32.34284758,240.79,240.7,32.31284758]
[1737195182876,0.03,240.79,240.74,32.31284758]
[1737195183498,0.03,240.79,240.72,32.31284758]
[1737195184405,0.03,240.79,240.75,32.31284758]
[1737195184602,0.03,240.79,240.77,32.31284758]
[1737195185597,0.03,240.79,240.73,32.31284758]
[1737195185983,0.03,240.79,240.78,1.03782597]
[1737195186190,0.03,240.79,240.78,21.03782597]
[1737195186903,0.03,240.79,240.78,1.03782597]
[1737195187986,0.03,240.79,240.78,21.03782597]
[1737195188996,0.03,240.79,240.78,1.03782597]
[1737195189780,0.03,240.79,240.78,21.03782597]
[1737195190387,0.03,240.79,240.78,1.03782597]
[1737195190590,0.03,240.79,240.78,21.03782597]
[1737195190906,0.03,240.79,240.78,1.03782597]
[1737195191591,0.03,240.79,240.78,53.35067355]
[1737195191788,0.03,240.79,240.78,52.31284758]
[1737195191986,0.03,240.79,240.74,32.31284758]
[1737195192186,0.03,240.79,240.73,1.03782597]
[1737195193106,32.31284758,240.77,240.73,1.03782597]
[1737195193276,32.31284758,240.75,240.73,1.03782597]
[1737195193483,19.87682284,240.74,240.73,1.03782597]
[1737195194191,19.87682284,240.74,240.61,19.87682284]
[1737195194390,19.87682284,240.7,240.61,19.87682284]
[1737195194811,19.87682284,240.7,240.63,19.87682284]
[1737195194987,8.9095,240.77,240.65,19.87682284]
[1737195194988,19.87682284,240.72,240.65,19.87682284]
[1737195195185,19.87682284,240.78,240.69,19.87682284]
[1737195196193,19.87682284,240.76,240.67,19.87682284]
[1737195196693,19.87682284,240.68,240.56,1.67878153]
[1737195196901,19.87682284,240.65,240.55,19.93982284]
[1737195197212,19.87682284,240.63,240.55,19.93982284]
[1737195197386,19.87682284,240.71,240.61,19.87682284]
[1737195198502,19.87682284,240.71,240.64,20.0]
[1737195199490,32.30523171,240.73,240.65,20.0]
[1737195199697,32.30523171,240.71,240.62,32.30523171]
[1737195200303,32.30523171,240.71,240.62,29.80523171]
[1737195200701,32.30523171,240.67,240.59,4.48]
[1737195200906,32.30523171,240.65,240.59,4.48]
[1737195201205,32.30523171,240.67,240.59,4.48]
[1737195201505,32.30523171,240.67,240.58,32.30523171]
[1737195202188,32.30523171,240.67,240.56,32.30523171]
[1737195202393,32.30523171,240.65,240.55,0.063]
[1737195202602,32.30523171,240.65,240.56,32.30523171]
[1737195203509,32.30523171,240.67,240.56,32.30523171]
[1737195203993,32.30523171,240.67,240.58,32.30523171]
[1737195204907,32.30523171,240.69,240.58,32.30523171]
[1737195205108,32.30523171,240.69,240.6,32.30523171]
[1737195206022,32.30523171,240.71,240.62,32.30523171]
[1737195208319,32.30523171,240.71,240.63,1.03821438]
[1737195209611,32.30523171,240.73,240.65,32.30523171]
[1737195210411,32.30523171,240.75,240.67,32.30523171]
[1737195210709,0.03,240.78,240.73,32.30523171]
[1737195211226,0.03,240.78,240.75,32.30523171]
[1737195211789,0.03,240.78,240.74,1.03821438]
[1737195211994,32.30523171,240.76,240.74,1.03821438]
[1737195212806,32.30523171,240.76,240.68,1.03821438]
[1737195213305,32.30523171,240.74,240.68,1.03821438]
[1737195214512,32.30523171,240.74,240.69,1.03821438]
[1737195216217,32.33523171,240.78,240.7,33.34344609]
[1737195216907,32.30523171,240.76,240.7,1.03821438]
[1737195217108,32.30523171,240.72,240.7,1.03821438]
[1737195218803,32.30523171,240.72,240.71,1.03821438]
[1737195219004,56.08211571,240.72,240.71,1.03821438]
[1737195219206,56.08211571,240.72,240.61,32.30523171]
[1737195219207,23.776884,240.71,240.56,0.063]
[1737195219405,19.9063594,240.57,240.56,0.063]
[1737195219607,43.6832434,240.57,240.56,0.063]
[1737195220525,54.9579434,240.57,240.56,0.063]
[1737195220897,31.1810594,240.57,240.56,0.063]
[1737195221310,19.9063594,240.57,240.56,0.063]
[1737195221718,19.9063594,240.59,240.56,0.063]
[1737195222703,19.9063594,240.61,240.56,0.063]
[1737195223723,19.9063594,240.59,240.56,0.063]
[1737195224425,19.9063594,240.57,240.56,0.063]
[1737195225023,43.6832434,240.57,240.56,0.063]
[1737195226208,47.8399434,240.57,240.56,0.063]
[1737195226406,23.776884,240.56,240.39,19.9063594]
[1737195226620,23.776884,240.56,240.37,19.9693594]
[1737195226927,19.9063594,240.45,240.37,19.9693594]
[1737195227310,19.9063594,240.43,240.37,0.063]
[1737195227512,2.8368,240.55,240.37,0.063]
[1737195227513,19.9063594,240.39,240.37,0.063]
[1737195228708,19.9063594,240.41,240.37,0.063]
[1737195230714,4.1576,240.53,240.37,19.9693594]
[1737195230914,19.9063594,240.44,240.37,0.063]
[1737195231523,19.9063594,240.42,240.37,0.063]
[1737195232821,19.9063594,240.46,240.39,19.9063594]
[1737195233037,19.9063594,240.48,240.39,19.9063594]
[1737195233411,19.9063594,240.5,240.41,19.9063594]
[1737195233616,19.9063594,240.52,240.42,20.0]
[1737195233816,19.9063594,240.52,240.43,19.9063594]
[1737195234022,19.9063594,240.5,240.43,19.9063594]
[1737195234216,19.9063594,240.5,240.41,19.9063594]
[1737195234421,23.776884,240.56,240.37,0.063]
[1737195234422,19.9063594,240.46,240.37,19.9693594]
[1737195234619,19.9063594,240.44,240.37,0.063]
[1737195235252,19.9063594,240.46,240.38,19.9063594]
[1737195235611,19.9063594,240.6,240.37,0.063]
[1737195235612,19.9063594,240.42,240.37,0.063]
[1737195235811,19.9063594,240.4,240.37,0.063]
[1737195236216,19.9063594,240.38,240.37,0.063]
[1737195236534,39.8127188,240.38,240.37,0.063]
[1737195236851,19.9063594,240.38,240.37,0.063]
[1737195237144,43.6832434,240.38,240.37,0.063]
[1737195237343,19.9063594,240.38,240.37,0.063]
[1737195237935,19.9063594,240.4,240.37,0.063]
[1737195238145,30.8636594,240.48,240.37,0.063]
[1737195238349,19.9063594,240.41,240.37,0.063]
[1737195238528,19.9063594,240.46,240.38,19.9063594]
[1737195238727,19.9063594,240.46,240.37,0.063]
[1737195239051,33.7004594,240.38,240.21,1.69429094]
[1737195239348,19.9063594,240.23,240.15,0.6240644]
[1737195239648,19.9063594,240.23,240.12,0.063]
[1737195239846,19.9063594,240.27,240.12,19.9693594]
[1737195240068,4.1607,240.35,240.12,0.063]
[1737195240229,19.9063594,240.27,240.12,0.063]
[1737195240427,19.9063594,240.29,240.22,20.0]
[1737195240639,19.9063594,240.29,240.21,19.9063594]
[1737195241138,19.9063594,240.27,240.17,19.9063594]
[1737195241336,19.9063594,240.3,240.21,19.9063594]
[1737195241530,19.9063594,240.32,240.21,19.9063594]
[1737195241739,10.9573,240.38,240.25,19.9063594]
[1737195241931,19.9063594,240.34,240.25,19.9063594]
[1737195242136,19.9063594,240.31,240.21,19.9063594]
[1737195242346,19.9063594,240.29,240.19,19.9063594]
[1737195242545,15.1174,240.38,240.21,19.9063594]
[1737195242790,19.9063594,240.23,240.15,0.6243108]
[1737195242933,19.9063594,240.27,240.18,19.9063594]
[1737195243131,19.9063594,240.27,240.12,20.59370923]
[1737195243132,19.9063594,240.25,240.16,19.9063594]
[1737195243342,19.9063594,240.23,240.12,0.063]
[1737195243541,19.9063594,240.23,240.13,19.9063594]
[1737195243750,19.9063594,240.24,240.12,0.063]
[1737195243930,19.9063594,240.24,240.15,19.9063594]
[1737195244142,19.9063594,240.26,240.17,19.9063594]
[1737195244349,19.9063594,240.28,240.19,19.9063594]
[1737195244847,19.9063594,240.32,240.21,19.9063594]
[1737195245047,19.9063594,240.32,240.23,19.9063594]
[1737195245466,19.9063594,240.28,240.19,19.9063594]
[1737195245669,19.9063594,240.3,240.21,19.9063594]
[1737195245965,19.9063594,240.28,240.19,19.9063594]
[1737195246153,19.9063594,240.26,240.12,19.9693594]
[1737195246353,19.9063594,240.26,240.17,19.9063594]
[1737195246666,19.9063594,240.24,240.15,19.9063594]
[1737195246871,19.9063594,240.2,240.12,0.063]
[1737195247074,19.9063594,240.18,240.12,0.063]
[1737195247363,19.9063594,240.16,240.12,0.063]
[1737195247558,26.613684,240.23,240.12,0.063]
[1737195247757,19.9063594,240.16,240.12,0.063]
[1737195248067,19.9063594,240.14,240.12,0.063]
[1737195248563,43.6832434,240.13,240.12,0.063]
[1737195248747,23.776884,240.13,240.12,0.063]
[1737195248948,19.9063594,240.14,240.12,0.063]
[1737195249763,19.9063594,240.14,240.06,19.9063594]
[1737195250069,19.9063594,240.12,240.04,19.9063594]
[1737195250373,19.9063594,240.08,240.0,19.9063594]
[1737195250681,19.9063594,240.08,239.98,19.9063594]
[1737195250844,10.9573,240.17,240.0,19.9063594]
[1737195251160,10.9573,240.17,239.89,0.62497095]
[1737195251161,19.9063594,240.11,240.02,19.9063594]
[1737195251661,23.776884,240.08,240.0,19.9063594]
[1737195251960,19.9063594,240.09,240.02,19.9063594]
[1737195252670,19.9063594,240.15,240.06,19.9063594]
[1737195252842,30.8636594,240.17,240.08,19.9063594]
[1737195253048,19.9063594,240.19,240.1,19.9063594]
[1737195253243,2.8368,240.23,240.04,13.9535]
[1737195253244,19.9063594,240.23,240.14,19.9063594]
[1737195253572,19.9063594,240.27,240.18,19.9063594]
[1737195253994,19.9063594,240.25,240.18,19.9063594]
[1737195254275,10.6048,240.31,240.2,19.9063594]
[1737195254561,19.9063594,240.24,240.16,19.9063594]
[1737195254769,19.9063594,240.24,240.14,19.9063594]
[1737195255174,19.9063594,240.22,240.14,19.9063594]
[1737195255745,23.776884,240.19,240.12,19.9063594]
[1737195255958,19.9063594,240.18,240.08,19.9063594]
[1737195256152,19.9063594,240.14,240.0,0.063]
[1737195256357,19.9063594,240.1,240.01,20.0063594]
[1737195256677,19.9063594,240.1,240.0,0.063]
[1737195256678,19.9063594,240.13,240.03,19.9063594]
[1737195256845,19.9063594,240.13,240.05,19.9063594]
[1737195257050,19.9063594,240.15,240.07,19.9063594]
[1737195257248,19.9063594,240.08,240.0,0.063]
[1737195257571,19.9063594,240.12,240.03,19.9063594]
[1737195258347,23.776884,240.11,240.03,19.9063594]
[1737195258573,19.9063594,240.13,240.05,19.9063594]
[1737195258754,19.9063594,240.11,240.03,19.9063594]
[1737195259047,19.9063594,240.13,240.03,19.9063594]
[1737195259253,19.9063594,240.13,240.05,19.9063594]
[1737195259469,19.9063594,240.18,240.09,19.9063594]
[1737195259775,19.9063594,240.2,240.09,19.9063594]
[1737195259953,19.9063594,240.2,240.11,19.9063594]
[1737195260157,19.9063594,240.24,240.15,19.9063594]